bitfinex/quotes_BTCUSD_20250410
["timestamp","ask_amount","ask_price","bid_price","bid_amount"]
[1744302122691,0.18,78595.0,78593.0,0.267198]
[1744302122692,0.14082216,78594.0,78593.0,0.267198]
[1744302123058,0.33082216,78594.0,78593.0,0.267198]
[1744302123658,0.33082216,78594.0,78593.0,0.39410558]
[1744302123862,0.33082216,78594.0,78593.0,0.43368512]
[1744302124079,0.33082216,78594.0,78593.0,0.39410558]
[1744302124283,0.33082216,78594.0,78593.0,0.43368437]
[1744302124719,0.12368029,78599.0,78598.0,0.607181]
[1744302124720,4.5e-07,78599.0,78598.0,0.607181]
[1744302124916,6.8e-07,78605.0,78604.0,0.66870085]
[1744302125116,6.8e-07,78605.0,78604.0,0.83518722]
[1744302125344,8e-08,78609.0,78604.0,0.58074822]
[1744302125542,6.1e-07,78615.0,78614.0,0.267127]
[1744302125749,6.1e-07,78615.0,78614.0,0.43361337]
[1744302125986,2.1e-07,78621.0,78614.0,0.43361337]
[1744302126320,8.2e-07,78633.0,78632.0,0.313766]
[1744302126499,0.21437917,78643.0,78638.0,0.267045]
[1744302126630,0.33315708,78639.0,78638.0,0.39395258]
[1744302126838,0.33328453,78639.0,78638.0,0.13962358]
[1744302127035,0.33328453,78639.0,78632.0,1.31016]
[1744302127292,0.0003362,78635.0,78634.0,0.012717]
[1744302127508,0.1003362,78635.0,78634.0,0.39396458]
[1744302127705,0.0003362,78635.0,78634.0,0.74850543]
[1744302128044,0.0103362,78635.0,78634.0,0.74850543]
[1744302128281,0.0103362,78635.0,78634.0,0.73396458]
[1744302128468,0.0103362,78635.0,78634.0,0.39396458]
[1744302128882,0.0103362,78635.0,78634.0,0.12690758]
[1744302128883,0.0053362,78635.0,78634.0,0.12690758]
[1744302129096,0.0053362,78635.0,78634.0,0.14216772]
[1744302129297,0.0053362,78635.0,78634.0,0.12690758]
[1744302129501,0.0053362,78635.0,78632.0,1.31016]
[1744302129700,0.0053362,78635.0,78628.0,0.012718]
[1744302129994,0.0053362,78635.0,78622.0,0.012719]
[1744302130180,0.0053362,78635.0,78627.0,0.267081]
[1744302130379,0.0053362,78635.0,78628.0,0.254359]
[1744302130582,0.0053362,78635.0,78627.0,0.012718]
[1744302130803,0.0053362,78635.0,78634.0,0.254342]
[1744302131133,0.0053362,78635.0,78628.0,0.267077]
[1744302131291,0.0053362,78635.0,78634.0,0.267059]
[1744302131496,0.0053362,78635.0,78634.0,0.39396658]
[1744302131696,0.0053362,78635.0,78633.0,0.254344]
[1744302131880,0.0053362,78635.0,78631.0,0.254352]
[1744302131881,0.0053362,78635.0,78631.0,0.25435]
[1744302132085,0.0053362,78635.0,78634.0,0.267059]
[1744302133111,0.0053362,78635.0,78632.0,0.38125458]
[1744302133112,0.0053362,78635.0,78633.0,0.254343]
[1744302133311,0.0053362,78635.0,78632.0,0.39397158]
[1744302133511,0.0053362,78635.0,78634.0,0.012717]
[1744302134033,0.0053362,78635.0,78629.0,0.267074]
[1744302134234,0.0053362,78635.0,78630.0,0.267071]
[1744302134437,0.0053362,78635.0,78634.0,0.267059]
[1744302134638,0.0053362,78635.0,78634.0,0.39396658]
[1744302134959,0.00758699,78651.0,78637.0,0.254332]
[1744302135194,0.19,78651.0,78638.0,0.254326]
[1744302135371,0.19,78651.0,78636.0,0.012716]
[1744302135372,0.19,78651.0,78636.0,0.254335]
[1744302135582,0.19,78651.0,78637.0,0.254333]
[1744302135783,0.19,78651.0,78638.0,0.254327]
[1744302136515,0.19,78651.0,78637.0,0.012716]
[1744302136912,0.19,78651.0,78643.0,0.012715]
[1744302137070,0.19,78651.0,78644.0,0.254308]
[1744302137272,0.19,78651.0,78640.0,0.267038]
[1744302137492,0.19,78651.0,78642.0,0.012715]
[1744302137653,0.19,78651.0,78643.0,0.254311]
[1744302138243,0.19,78651.0,78644.0,0.012715]
[1744302138387,0.19,78651.0,78648.0,0.012714]
[1744302138994,0.19,78651.0,78645.0,0.254307]
[1744302138995,0.19,78651.0,78644.0,0.12690758]
[1744302139219,0.19,78651.0,78645.0,0.012715]
[1744302139420,0.267016,78647.0,78628.0,0.25436]
[1744302139642,0.2,78647.0,78632.0,0.12690758]
[1744302139848,0.254346,78633.0,78631.0,0.00012745]
[1744302140046,0.414346,78633.0,78631.0,0.00012745]
[1744302140245,0.0459,78632.0,78631.0,0.00012745]
[1744302140468,0.2259,78632.0,78631.0,0.00012745]
[1744302140998,0.578617,78632.0,78631.0,0.00012745]
[1744302141146,0.012721,78604.0,78570.0,0.012727]
[1744302141350,0.34,78603.0,78586.0,0.254496]
[1744302141530,0.54,78603.0,78585.0,0.254499]
[1744302141718,0.54,78603.0,78584.0,0.254504]
[1744302141921,0.012722,78601.0,78580.0,0.267242]
[1744302142123,0.352722,78600.0,78581.0,0.38141958]
[1744302142367,0.352722,78600.0,78577.0,0.26725]
[1744302142368,0.254468,78596.0,78577.0,0.26725]
[1744302142541,0.012725,78580.0,78559.0,0.0001677]
[1744302142765,0.012725,78580.0,78575.0,0.00012686]
[1744302142766,0.17,78580.0,78575.0,0.00012686]
[1744302142947,0.17,78580.0,78579.0,0.267246]
[1744302143150,0.17,78580.0,78579.0,0.39415358]
[1744302143345,0.4191,78595.0,78594.0,0.267195]
[1744302143546,0.04,78595.0,78591.0,0.012724]
[1744302143829,0.04,78595.0,78593.0,0.267198]
[1744302144007,0.04,78595.0,78594.0,0.13963058]
[1744302144568,0.04,78595.0,78593.0,0.012723]
[1744302144754,0.04,78595.0,78594.0,0.012723]
[1744302144951,0.04,78595.0,78592.0,0.012723]
[1744302145195,0.04,78595.0,78594.0,0.012723]
[1744302145431,0.04,78595.0,78594.0,0.14217517]
[1744302145595,0.04,78595.0,78594.0,0.13963058]
[1744302146604,0.0495,78624.0,78594.0,0.13963058]
[1744302146605,0.4667,78634.0,78613.0,0.01272]
[1744302146863,0.02304166,78633.0,78623.0,0.012718]
[1744302147040,0.02304166,78633.0,78618.0,0.254391]
[1744302147041,0.254352,78631.0,78606.0,0.012721]
[1744302147187,0.19,78631.0,78611.0,0.267134]
[1744302147388,0.02304166,78630.0,78611.0,0.267134]
[1744302147583,0.02304166,78630.0,78606.0,0.25443]
[1744302147584,0.012718,78623.0,78599.0,0.254453]
[1744302147833,0.73674008,78621.0,78602.0,0.012722]
[1744302148037,0.17,78621.0,78604.0,0.012721]
[1744302148242,0.01272,78612.0,78589.0,0.012724]
[1744302148441,0.254445,78603.0,78578.0,0.012726]
[1744302148695,0.17,78603.0,78585.0,0.267223]
[1744302148857,0.012722,78602.0,78581.0,0.34]
[1744302149101,0.73674008,78600.0,78581.0,0.12690758]
[1744302149280,0.73674008,78600.0,78562.0,0.045168]
[1744302149281,0.267217,78588.0,78568.0,0.267283]
[1744302149485,0.254497,78587.0,78568.0,0.254554]
[1744302149683,0.267224,78586.0,78566.0,0.254561]
[1744302149886,0.73674008,78580.0,78579.0,0.00012686]
[1744302150116,0.259425,78580.0,78579.0,0.00012686]
[1744302150524,0.32926878,78580.0,78579.0,0.00012686]
[1744302150881,0.32806279,78580.0,78579.0,0.00012686]
[1744302151329,0.46769537,78580.0,78579.0,0.00012686]
[1744302152107,0.46769537,78580.0,78559.0,0.0001677]
[1744302152108,0.012728,78562.0,78559.0,0.0001677]
[1744302152310,0.012729,78560.0,78559.0,0.0001677]
[1744302152520,0.35255024,78560.0,78559.0,0.0001677]
[1744302152836,0.36527924,78560.0,78559.0,0.0001677]
[1744302153040,0.37679825,78560.0,78559.0,0.0001677]
[1744302153374,0.37679825,78560.0,78535.0,0.267393]
[1744302153375,0.012731,78543.0,78532.0,0.0001681]
[1744302153576,0.02304378,78542.0,78532.0,0.0001681]
[1744302153778,0.18,78542.0,78532.0,0.0001681]
[1744302153977,0.18,78542.0,78531.0,0.0006]
[1744302153978,0.012732,78539.0,78531.0,0.0006]
[1744302154302,0.012733,78535.0,78531.0,0.0006]
[1744302154619,0.18,78535.0,78531.0,0.0006]
[1744302155395,0.01151901,78534.0,78531.0,0.0006]
[1744302155620,0.19151901,78534.0,78531.0,0.0006]
[1744302156350,0.18,78534.0,78531.0,0.0006]
[1744302158193,0.012733,78533.0,78531.0,0.0006]
[1744302158422,0.012733,78532.0,78531.0,0.0006]
[1744302158615,0.56431358,78532.0,78531.0,0.0006]
[1744302159009,0.29690758,78532.0,78531.0,0.0006]
[1744302159190,0.17,78532.0,78531.0,0.0006]
[1744302160737,0.17,78532.0,78531.0,0.013333]
[1744302161060,0.35584058,78532.0,78531.0,0.0006]
[1744302161390,0.30964058,78532.0,78531.0,0.0006]
[1744302162103,0.32107001,78532.0,78531.0,0.0006]
[1744302163006,0.66107001,78532.0,78531.0,0.0006]
[1744302163208,0.65898062,78532.0,78531.0,0.0006]
[1744302163821,0.522733,78532.0,78531.0,0.0006]
[1744302164028,0.51,78532.0,78531.0,0.0006]
[1744302164253,0.64964058,78532.0,78531.0,0.0006]
[1744302165612,0.65924718,78532.0,78531.0,0.0006]
[1744302165995,0.522733,78532.0,78531.0,0.0006]
[1744302166535,0.90431358,78532.0,78531.0,0.0006]
[1744302168359,0.51,78532.0,78531.0,0.0006]
[1744302168514,0.18145393,78532.0,78531.0,0.0006]
[1744302169557,0.17,78532.0,78531.0,0.0006]
[1744302169757,0.30964058,78532.0,78531.0,0.0006]
[1744302169957,0.71772416,78532.0,78531.0,0.0006]
[1744302170157,0.64964058,78532.0,78531.0,0.0006]
[1744302171461,0.594708,78521.0,78500.0,0.000168]
[1744302171783,0.92435058,78521.0,78500.0,0.000168]
[1744302172154,0.607461,78516.0,78500.0,0.000168]
[1744302172356,0.91436858,78516.0,78500.0,0.000168]
[1744302172556,0.607467,78514.0,78500.0,0.000168]
[1744302172909,0.93891543,78514.0,78500.0,0.000168]
[1744302173031,0.92437458,78514.0,78500.0,0.000168]
[1744302173233,0.94522403,78514.0,78500.0,0.000168]
[1744302173453,0.94522403,78514.0,78513.0,0.267638]
[1744302173454,0.20147282,78514.0,78513.0,0.267638]
[1744302173676,0.20147282,78514.0,78513.0,0.000168]
[1744302173899,0.20159985,78514.0,78513.0,0.000168]
[1744302174126,0.19012703,78514.0,78513.0,0.012904]
[1744302174460,0.19012703,78514.0,78513.0,0.13981158]
[1744302174819,0.19012703,78514.0,78513.0,0.139014]
[1744302175219,0.19012703,78514.0,78513.0,0.12690758]
[1744302175433,0.19012703,78514.0,78512.0,0.012736]
[1744302175603,0.19012703,78514.0,78511.0,0.267476]
[1744302175812,0.19012703,78514.0,78506.0,0.02358545]
[1744302176014,0.19012703,78514.0,78512.0,0.254736]
[1744302176212,0.19012703,78514.0,78509.0,0.254746]
[1744302176420,0.19012703,78514.0,78509.0,0.012737]
[1744302176634,0.19012703,78514.0,78510.0,0.012737]
[1744302176846,0.19012703,78514.0,78513.0,0.012736]
[1744302177048,0.19012703,78514.0,78510.0,0.39438158]
[1744302177049,0.19012703,78514.0,78511.0,0.02358545]
[1744302177249,0.19012703,78514.0,78512.0,0.012736]
[1744302177455,0.19012703,78514.0,78513.0,0.26747]
[1744302178161,0.19012703,78514.0,78513.0,0.02358545]
[1744302179315,0.19012703,78514.0,78513.0,0.29105545]
[1744302179523,0.19012703,78514.0,78513.0,0.02358545]
[1744302179728,0.19012703,78514.0,78513.0,0.03632145]
[1744302180359,0.19012703,78514.0,78513.0,0.02358545]
[1744302181184,0.012737,78510.0,78500.0,0.000168]
[1744302181384,0.18,78510.0,78500.0,0.000168]
[1744302181598,0.267511,78501.0,78500.0,0.000168]
[1744302181836,0.16,78501.0,78500.0,0.000168]
[1744302182175,0.18316181,78501.0,78500.0,0.267683]
[1744302182391,0.19473842,78501.0,78500.0,0.267683]
[1744302182578,0.19473842,78501.0,78500.0,0.000168]
[1744302183202,0.19473842,78501.0,78500.0,0.52641358]
[1744302183372,0.02316181,78501.0,78500.0,0.52641358]
[1744302183772,0.02316181,78501.0,78500.0,0.56590825]
[1744302184072,0.012733,78535.0,78500.0,0.56590825]
[1744302184073,0.012731,78543.0,78518.0,0.012735]
[1744302184309,0.012733,78534.0,78518.0,0.254717]
[1744302184516,0.19,78534.0,78521.0,0.012735]
[1744302184726,0.19,78534.0,78524.0,0.012734]
[1744302184907,0.19,78534.0,78523.0,0.2547]
[1744302185117,0.19,78534.0,78523.0,0.254701]
[1744302185319,0.012734,78525.0,78509.0,0.254746]
[1744302185522,0.012735,78521.0,78510.0,0.02378482]
[1744302185725,0.17,78521.0,78510.0,0.02378482]
[1744302185926,0.17,78521.0,78511.0,0.02378482]
[1744302186282,0.17,78521.0,78501.0,0.3891]
[1744302186283,0.267473,78513.0,78512.0,0.02378482]
[1744302186485,0.58438058,78513.0,78512.0,0.02378482]
[1744302186656,0.267511,78501.0,78500.0,0.000168]
[1744302186832,0.58441858,78501.0,78500.0,0.000168]
[1744302187041,0.19,78501.0,78500.0,0.000168]
[1744302187700,0.19,78501.0,78500.0,0.00059267]
[1744302188382,0.457511,78501.0,78500.0,0.00059267]
[1744302188838,0.58441858,78501.0,78500.0,0.00059267]
[1744302189757,0.67861858,78501.0,78500.0,0.00059267]
[1744302190314,0.67861858,78501.0,78483.0,0.0009]
[1744302190315,0.34,78500.0,78483.0,0.0009]
[1744302190519,0.26757,78484.0,78483.0,0.0009]
[1744302190888,0.254864,78473.0,78465.0,0.84526903]
[1744302191017,0.16,78473.0,78469.0,0.254876]
[1744302191230,0.16,78473.0,78470.0,0.012743]
[1744302191545,0.16,78473.0,78471.0,0.012743]
[1744302191746,0.16,78473.0,78472.0,0.26761]
[1744302191948,0.16,78473.0,78472.0,0.39451758]
[1744302192155,0.16042441,78473.0,78472.0,0.39451758]
[1744302192870,0.00042441,78473.0,78472.0,0.44271758]
[1744302193202,0.00042441,78473.0,78472.0,0.79725843]
[1744302193352,0.00042441,78473.0,78472.0,0.83682425]
[1744302193571,0.00042441,78473.0,78472.0,0.88232425]
[1744302193734,0.0485,78539.0,78483.0,0.34]
[1744302193933,0.012735,78522.0,78506.0,0.012737]
[1744302194134,0.254712,78520.0,78504.0,0.01037513]
[1744302194405,0.254722,78517.0,78504.0,0.254764]
[1744302194593,0.254727,78516.0,78501.0,0.012738]
[1744302194800,0.254727,78516.0,78505.0,0.01186518]
[1744302194801,0.267477,78512.0,78505.0,0.01186518]
[1744302194951,0.19,78512.0,78505.0,0.01186518]
[1744302195153,0.19,78512.0,78506.0,0.267491]
[1744302195362,0.19,78512.0,78506.0,0.00012703]
[1744302195767,0.19,78512.0,78511.0,0.267478]
[1744302195978,0.012731,78548.0,78534.0,0.012733]
[1744302196181,0.25467,78533.0,78522.0,1.31164]
[1744302196384,0.17,78533.0,78523.0,0.254702]
[1744302196590,0.17,78533.0,78522.0,1.31164]
[1744302196794,0.17,78533.0,78524.0,0.01186518]
[1744302197027,0.17,78533.0,78529.0,0.012734]
[1744302197241,0.17,78533.0,78527.0,0.012734]
[1744302197398,0.17,78533.0,78530.0,0.01186518]
[1744302198006,0.17,78533.0,78532.0,0.267406]
[1744302198435,0.87147081,78542.0,78541.0,0.267376]
[1744302198758,0.88159822,78542.0,78541.0,0.39428358]
[1744302199064,0.88159822,78542.0,78541.0,0.12690758]
[1744302199376,0.88159822,78542.0,78541.0,0.39428358]
[1744302199534,0.87159822,78542.0,78541.0,0.73428358]
[1744302199743,0.86204883,78542.0,78541.0,0.74607649]
[1744302200140,0.86204883,78542.0,78541.0,0.78556181]
[1744302200545,0.86204883,78542.0,78541.0,0.47870049]
[1744302200762,0.86204883,78542.0,78541.0,0.49143249]
[1744302201273,0.77718978,78542.0,78541.0,0.49143249]
[1744302201472,0.68038978,78542.0,78541.0,0.50597334]
[1744302201902,6.3e-07,78546.0,78545.0,0.607362]
[1744302202106,0.0003364,78574.0,78573.0,0.267267]
[1744302202316,0.0203364,78574.0,78573.0,0.39417458]
[1744302202467,0.0003356,78593.0,78573.0,0.39417458]
[1744302202468,0.0003356,78593.0,78592.0,0.267201]
[1744302202668,0.0003356,78593.0,78592.0,0.39410858]
[1744302202872,0.0003356,78593.0,78592.0,0.74597376]
[1744302202873,0.00076046,78593.0,78592.0,0.74597376]
[1744302203676,0.00076046,78593.0,78592.0,0.47877276]
[1744302203877,0.00076046,78593.0,78592.0,0.74597376]
[1744302204057,0.00076046,78593.0,78592.0,0.47877276]
[1744302204253,0.00076046,78593.0,78592.0,0.13877276]
[1744302204709,0.01076046,78593.0,78592.0,0.01186518]
[1744302204912,0.01076046,78593.0,78592.0,0.12690758]
[1744302205115,0.01076046,78593.0,78592.0,0.39410858]
[1744302205259,0.00076046,78593.0,78592.0,0.12690758]
[1744302205662,0.00076046,78593.0,78592.0,0.39410858]
[1744302205909,0.00076046,78593.0,78592.0,0.40597376]
[1744302206262,0.00076046,78593.0,78592.0,0.74597376]
[1744302206727,0.00076046,78593.0,78592.0,0.76942429]
[1744302207100,0.00076046,78593.0,78592.0,0.78396514]
[1744302207285,0.0003364,78612.0,78611.0,0.267137]
[1744302207490,0.00046382,78612.0,78611.0,1.70484458]
[1744302208687,0.00046382,78612.0,78611.0,1.71670976]
[1744302209115,0.00046382,78612.0,78611.0,1.46229276]
[1744302209779,0.00046382,78612.0,78611.0,1.80229276]
[1744302209976,0.00046382,78612.0,78611.0,1.81683361]
[1744302210403,0.0003364,78655.0,78646.0,0.012715]
[1744302210604,0.1803364,78655.0,78654.0,0.266991]
[1744302210755,0.18046373,78655.0,78654.0,0.73389858]
[1744302211006,0.00046373,78655.0,78654.0,0.51664712]
[1744302211331,0.00046373,78655.0,78654.0,0.52618116]
[1744302211629,0.00046373,78655.0,78654.0,0.47877276]
[1744302212403,0.01046373,78655.0,78654.0,0.47877276]
[1744302212945,0.01046373,78655.0,78654.0,0.46690758]
[1744302214001,0.012709,78684.0,78655.0,0.34]
[1744302214002,0.254254,78662.0,78655.0,0.34]
[1744302214146,0.284254,78662.0,78656.0,0.12690758]
[1744302214351,0.03,78662.0,78657.0,0.00254238]
[1744302214552,0.03,78662.0,78658.0,0.12690758]
[1744302214779,0.254225,78671.0,78658.0,0.12690758]
[1744302215112,0.04,78671.0,78659.0,0.01186518]
[1744302215260,0.254235,78668.0,78660.0,0.12690758]
[1744302215455,0.254238,78667.0,78660.0,0.12690758]
[1744302215660,0.414238,78667.0,78660.0,0.12690758]
[1744302215922,0.414238,78667.0,78659.0,0.01186518]
[1744302215923,0.254255,78661.0,78659.0,0.01186518]
[1744302216136,0.16,78661.0,78649.0,0.34]
[1744302216339,0.16,78661.0,78650.0,0.12690758]
[1744302216633,0.012714,78652.0,78650.0,0.12690758]
[1744302216857,0.012714,78652.0,78648.0,0.01186518]
[1744302216858,0.254291,78650.0,78648.0,0.01186518]
[1744302217142,0.254376,78624.0,78622.0,1.30948]
[1744302217355,0.01,78624.0,78623.0,0.12690758]
[1744302217545,0.01,78624.0,78622.0,1.30948]
[1744302217699,0.01,78624.0,78622.0,1.43638758]
[1744302218104,0.264376,78624.0,78622.0,1.43638758]
[1744302218305,0.012718,78623.0,78622.0,1.30948]
[1744302218529,0.2671,78622.0,78621.0,0.00012733]
[1744302218728,0.4571,78622.0,78621.0,0.00012733]
[1744302219049,0.267198,78593.0,78592.0,1.30948]
[1744302219354,0.052723,78593.0,78592.0,1.30948]
[1744302219510,0.052723,78593.0,78592.0,1.30960742]
[1744302219713,0.04,78593.0,78592.0,1.436515]
[1744302219916,0.04,78593.0,78592.0,1.30960742]
[1744302220251,0.04,78593.0,78592.0,0.00012742]
[1744302220252,0.052723,78593.0,78592.0,0.00012742]
[1744302220753,0.17963058,78593.0,78592.0,0.00012742]
[1744302221368,0.052723,78593.0,78592.0,0.00012742]
[1744302221665,0.04,78593.0,78592.0,0.00012742]
[1744302222271,0.04,78593.0,78592.0,0.139758]
[1744302222570,0.0494,78628.0,78619.0,0.012719]
[1744302222744,0.2394,78628.0,78609.0,0.267142]
[1744302222947,0.254378,78623.0,78610.0,0.12690758]
[1744302223152,0.01272,78614.0,78599.0,0.01167349]
[1744302223329,0.19,78614.0,78600.0,0.38135858]
[1744302223529,0.19,78614.0,78609.0,0.012721]
[1744302223872,0.19,78614.0,78610.0,0.12690758]
[1744302223873,0.185,78614.0,78610.0,0.12690758]
[1744302224076,0.185,78614.0,78613.0,0.01272]
[1744302224236,0.185,78614.0,78613.0,0.13962758]
[1744302224791,0.74945608,78640.0,78613.0,0.13962758]
[1744302224792,0.0463,78646.0,78631.0,0.25435]
[1744302224959,0.19,78642.0,78632.0,0.12690758]
[1744302225161,0.19,78642.0,78640.0,0.012716]
[1744302225363,0.19,78642.0,78641.0,0.15129707]
[1744302225742,0.012712,78665.0,78645.0,0.012715]
[1744302225946,0.012712,78665.0,78661.0,0.012712]
[1744302225947,0.17,78665.0,78661.0,0.012712]
[1744302226147,0.005336,78703.0,78676.0,0.606917]
[1744302226148,0.000336,78703.0,78676.0,0.606917]
[1744302226347,0.000336,78703.0,78681.0,0.606899]
[1744302226550,0.000336,78703.0,78686.0,0.606882]
[1744302226773,4e-07,78687.0,78686.0,0.76000392]
[1744302226974,0.000336,78703.0,78696.0,0.012707]
[1744302227174,0.0458,78769.0,78759.0,0.012696]
[1744302227407,0.0458,78769.0,78759.0,0.12690758]
[1744302227408,0.12,78769.0,78759.0,0.12690758]
[1744302227551,0.33735395,78768.0,78760.0,0.12944665]
[1744302227750,0.50735395,78768.0,78761.0,0.02343386]
[1744302227998,0.00042496,78763.0,78761.0,0.00171354]
[1744302228202,0.012699,78745.0,78721.0,0.34]
[1744302228414,0.0001676,78734.0,78723.0,0.34]
[1744302228583,0.012702,78727.0,78708.0,0.34]
[1744302228782,0.16,78727.0,78709.0,0.12690758]
[1744302229384,0.012703,78718.0,78709.0,0.12690758]
[1744302229741,0.012703,78718.0,78696.0,0.25424]
[1744302229742,0.17,78718.0,78700.0,0.012706]
[1744302229859,0.17,78718.0,78704.0,0.12690758]
[1744302230064,0.17,78718.0,78705.0,0.25665093]
[1744302230265,0.17,78718.0,78706.0,0.12690758]
[1744302230466,0.17,78718.0,78710.0,0.012704]
[1744302230712,0.17,78718.0,78709.0,0.0001]
[1744302230713,0.25409,78712.0,78709.0,0.0001]
[1744302231035,0.02,78712.0,78709.0,0.0001]
[1744302231245,0.02,78712.0,78710.0,0.12690758]
[1744302231437,0.02,78712.0,78709.0,0.0001]
[1744302231438,0.266801,78710.0,78709.0,0.0001]
[1744302231640,0.04,78710.0,78709.0,0.12700758]
[1744302231841,0.04,78710.0,78709.0,0.39380958]
[1744302232139,0.04,78710.0,78709.0,0.12700758]
[1744302232339,0.04,78710.0,78709.0,0.13971258]
[1744302232482,0.04,78710.0,78709.0,0.0001]
[1744302233086,0.052704,78710.0,78709.0,0.0002]
[1744302233708,0.052704,78710.0,78709.0,0.0003]
[1744302233709,0.04,78710.0,78709.0,0.0003]
[1744302234111,0.04,78710.0,78709.0,0.13991258]
[1744302234770,0.04,78710.0,78709.0,0.12720758]
[1744302235006,0.0004247,78727.0,78724.0,0.254052]
[1744302235187,0.0004247,78727.0,78726.0,0.012702]
[1744302235408,0.0004247,78727.0,78726.0,0.47960958]
[1744302235589,0.0104247,78727.0,78726.0,0.47960958]
[1744302235777,0.0104247,78727.0,78726.0,0.12690758]
[1744302235946,0.0104247,78727.0,78723.0,0.34]
[1744302236140,0.0104247,78727.0,78725.0,0.352702]
[1744302236348,0.0104247,78727.0,78725.0,0.47960958]
[1744302236702,0.0104247,78727.0,78722.0,1.3086]
[1744302236860,0.0104247,78727.0,78726.0,0.012702]
[1744302237264,0.0104247,78727.0,78723.0,0.266757]
[1744302237462,0.0104247,78727.0,78722.0,1.321302]
[1744302237667,0.0104247,78727.0,78724.0,0.012702]
[1744302237863,0.0104247,78727.0,78705.0,0.00941735]
[1744302238063,0.0104247,78727.0,78695.0,1.30836]
[1744302238064,0.26675,78726.0,78710.0,0.12690758]
[1744302238251,0.202702,78726.0,78708.0,0.266806]
[1744302238450,0.19,78726.0,78708.0,0.254102]
[1744302238690,0.19,78726.0,78681.0,0.55338]
[1744302238691,0.254084,78714.0,78695.0,1.575209]
[1744302238905,0.28690758,78714.0,78695.0,1.30836]
[1744302239220,0.28690758,78714.0,78650.0,0.74961753]
[1744302239221,0.012706,78697.0,78676.0,0.01271]
[1744302239558,0.19,78697.0,78691.0,0.266864]
[1744302239733,0.19,78697.0,78694.0,0.254148]
[1744302239925,0.19,78697.0,78696.0,0.012807]
[1744302240328,0.254038,78729.0,78712.0,0.254089]
[1744302240530,0.254038,78729.0,78711.0,0.012704]
[1744302240531,0.19,78729.0,78711.0,0.012704]
[1744302240755,0.19,78729.0,78699.0,1.30836]
[1744302240756,0.19,78729.0,78717.0,0.254074]
[1744302240958,0.19,78729.0,78728.0,0.26674]
[1744302241111,0.012697,78756.0,78733.0,0.266724]
[1744302241324,0.0005923,78734.0,78733.0,0.39363158]
[1744302242533,0.352696,78761.0,78736.0,0.0127]
[1744302242728,0.00012734,78759.0,78739.0,0.254003]
[1744302242951,0.18012734,78759.0,78740.0,0.12690758]
[1744302243275,0.18012734,78759.0,78741.0,0.00253977]
[1744302243428,0.18012734,78759.0,78740.0,0.12690758]
[1744302243429,0.18012734,78759.0,78743.0,0.25399]
[1744302243630,0.253944,78758.0,78744.0,0.12690758]
[1744302243828,0.253944,78758.0,78743.0,0.012699]
[1744302243829,0.52,78758.0,78743.0,0.012699]
[1744302244029,0.52,78758.0,78745.0,0.253982]
[1744302244230,0.52,78758.0,78728.0,0.00937859]
[1744302244231,0.18,78758.0,78757.0,0.266642]
[1744302244433,0.18,78758.0,78757.0,0.39354958]
[1744302244635,0.14848595,78798.0,78757.0,0.38085258]
[1744302244842,0.00012715,78791.0,78782.0,0.253863]
[1744302245050,0.34,78790.0,78777.0,0.012694]
[1744302245246,0.34,78790.0,78778.0,0.13960058]
[1744302245247,0.51,78790.0,78778.0,0.13960058]
[1744302245448,0.51,78790.0,78775.0,0.012694]
[1744302245449,0.182691,78790.0,78772.0,1.30808]
[1744302245673,0.012692,78786.0,78772.0,1.43498758]
[1744302245871,0.17,78786.0,78785.0,0.266547]
[1744302246207,0.17,78786.0,78777.0,0.0001]
[1744302246535,0.012692,78785.0,78777.0,0.0001]
[1744302246738,0.17,78785.0,78777.0,0.0001]
[1744302246935,0.26657,78778.0,78777.0,0.0001]
[1744302247248,0.182693,78778.0,78777.0,0.0001]
[1744302247559,0.51,78778.0,78777.0,0.0001]
[1744302247795,0.51,78778.0,78777.0,0.39358258]
[1744302247796,0.17,78778.0,78777.0,0.39358258]
[1744302248032,0.002,78799.0,78790.0,0.012691]
[1744302248231,0.16012715,78791.0,78790.0,0.253839]
[1744302248376,0.16012715,78791.0,78790.0,0.26653]
[1744302248608,0.16012715,78791.0,78790.0,0.39343758]
[1744302248812,0.00012715,78791.0,78790.0,0.39343758]
[1744302249014,0.00012715,78791.0,78790.0,0.12690758]
[1744302249219,0.01012715,78791.0,78790.0,0.12690758]
[1744302249418,0.01012715,78791.0,78790.0,0.13959858]
[1744302249619,0.01012715,78791.0,78790.0,0.12690758]
[1744302249898,0.01012715,78791.0,78790.0,0.13959858]
[1744302250076,0.01012715,78791.0,78790.0,0.12690758]
[1744302250261,0.01012715,78791.0,78785.0,0.012692]
[1744302250578,0.01012715,78791.0,78778.0,0.023248]
[1744302250870,0.01012715,78791.0,78781.0,0.253868]
[1744302251073,0.01012715,78791.0,78783.0,0.266552]
[1744302251273,0.01012715,78791.0,78790.0,0.012691]
[1744302251486,0.01012715,78791.0,78790.0,0.13959858]
[1744302251487,0.00012715,78791.0,78790.0,0.13959858]
[1744302251621,0.01012715,78791.0,78790.0,0.13959858]
[1744302251823,0.00012715,78791.0,78790.0,0.14213672]
[1744302252026,0.00012715,78791.0,78790.0,0.1421366]
[1744302252283,0.00012715,78791.0,78790.0,0.16538493]
[1744302252636,0.00012715,78791.0,78790.0,0.16284691]
[1744302252838,0.00012715,78791.0,78790.0,0.15015591]
[1744302253042,0.01012715,78791.0,78790.0,0.02324833]
[1744302253649,0.36281815,78791.0,78790.0,0.02324833]
[1744302254086,0.5113041,78791.0,78790.0,0.02324833]
[1744302254247,0.63821168,78791.0,78790.0,0.02324833]
[1744302254453,0.266564,78780.0,78779.0,0.02324833]
[1744302254651,0.786564,78780.0,78779.0,0.02324833]
[1744302254902,1.07649838,78780.0,78779.0,0.02324833]
[1744302255102,0.62111085,78778.0,78777.0,0.0001]
[1744302255319,1.07650438,78778.0,78777.0,0.0001]
[1744302255519,1.07650438,78778.0,78748.0,0.01174322]
[1744302255520,0.253964,78752.0,78748.0,0.01174322]